[Event "Late-Titled-Tuesday-Blitz-April-23-2024"]
[Site "Chess.com"]
[Date "2024.04.23"]
[Round "9"]
[White "chedimir"]
[Black "malakismayil"]
[Result "1-0"]
[WhiteElo "2487"]
[BlackElo "2568"]
[TimeControl "180+1"]
[EndTime "15:44:50 PDT"]
[Termination "chedimir won by resignation"]

1. e4 {[%clk 0:03:00.2]} 1... e5 {[%clk 0:02:57.9]} 2. Nf3 {[%clk 0:02:59.6]}
2... Nc6 {[%clk 0:02:57.2]} 3. Bb5 {[%clk 0:02:58.9]} 3... a6 {[%clk 0:02:57.4]}
4. Ba4 {[%clk 0:02:58.4]} 4... Nf6 {[%clk 0:02:57.6]} 5. O-O {[%clk 0:02:58]}
5... b5 {[%clk 0:02:58.2]} 6. Bb3 {[%clk 0:02:57.7]} 6... Be7 {[%clk 0:02:59.1]}
7. d4 {[%clk 0:02:57.7]} 7... d6 {[%clk 0:02:58.7]} 8. dxe5 {[%clk 0:02:57.2]}
8... Nxe5 {[%clk 0:02:59.6]} 9. Nxe5 {[%clk 0:02:56.6]} 9... dxe5 {[%clk
0:03:00.5]} 10. Qe2 {[%clk 0:02:56.4]} 10... Bb7 {[%clk 0:02:57.1]} 11. Rd1
{[%clk 0:02:53.6]} 11... Qc8 {[%clk 0:02:56.1]} 12. Nc3 {[%clk 0:02:53.4]} 12...
O-O {[%clk 0:02:54.5]} 13. Bg5 {[%clk 0:02:47.8]} 13... h6 {[%clk 0:02:44.8]}
14. Bh4 {[%clk 0:02:30.6]} 14... Re8 {[%clk 0:02:25.3]} 15. Bxf6 {[%clk
0:02:25.3]} 15... Bxf6 {[%clk 0:02:23.4]} 16. Qh5 {[%clk 0:02:24.4]} 16... Re7
{[%clk 0:02:14.4]} 17. Nd5 {[%clk 0:02:23.4]} 17... Bxd5 {[%clk 0:02:13.3]} 18.
Bxd5 {[%clk 0:02:23.1]} 18... c6 {[%clk 0:02:13.5]} 19. Bb3 {[%clk 0:02:22.8]}
19... Qe8 {[%clk 0:02:12]} 20. a4 {[%clk 0:02:20.3]} 20... b4 {[%clk 0:02:05.4]}
21. g3 {[%clk 0:02:13.8]} 21... a5 {[%clk 0:02:04.6]} 22. Rd3 {[%clk 0:02:12.6]}
22... Rd8 {[%clk 0:02:02.1]} 23. Rad1 {[%clk 0:02:12]} 23... Rxd3 {[%clk
0:01:47]} 24. Rxd3 {[%clk 0:02:11]} 24... Qc8 {[%clk 0:01:27.7]} 25. Kg2 {[%clk
0:01:52.8]} 25... c5 {[%clk 0:01:05.7]} 26. Bc4 {[%clk 0:01:52.1]} 26... Rd7
{[%clk 0:00:57.3]} 27. Qf5 {[%clk 0:01:45.5]} 27... Rc7 {[%clk 0:00:52.2]} 28.
Qxc8+ {[%clk 0:01:34.9]} 28... Rxc8 {[%clk 0:00:53.1]} 29. Rd7 {[%clk
0:01:34.6]} 29... Bg5 {[%clk 0:00:51.5]} 30. Rxf7 {[%clk 0:01:32]} 30... Kh8
{[%clk 0:00:37.9]} 31. f4 {[%clk 0:01:29.1]} 31... Bf6 {[%clk 0:00:32.9]} 32. b3
{[%clk 0:01:21.5]} 32... Rd8 {[%clk 0:00:30.5]} 33. Bd5 {[%clk 0:01:20.7]} 33...
h5 {[%clk 0:00:22.5]} 34. fxe5 {[%clk 0:01:15.5]} 34... Bxe5 {[%clk 0:00:23.4]}
35. Rf5 {[%clk 0:01:15]} 1-0

[Event "Late-Titled-Tuesday-Blitz-April-23-2024"]
[Site "Chess.com"]
[Date "2024.04.23"]
[Round "9"]
[White "masterofpuppets2"]
[Black "Stanbad1"]
[Result "0-1"]
[WhiteElo "2479"]
[BlackElo "2607"]
[TimeControl "180+1"]
[EndTime "15:44:52 PDT"]
[Termination "Stanbad1 won on time"]

1. d4 {[%clk 0:03:00.9]} 1... Nf6 {[%clk 0:02:59.5]} 2. c4 {[%clk 0:03:00.7]}
2... c5 {[%clk 0:03:00.1]} 3. d5 {[%clk 0:03:00.5]} 3... b5 {[%clk 0:03:00.6]}
4. cxb5 {[%clk 0:03:01.4]} 4... a6 {[%clk 0:03:00.2]} 5. bxa6 {[%clk 0:03:02.3]}
5... g6 {[%clk 0:03:00.2]} 6. Nc3 {[%clk 0:03:02.8]} 6... Bg7 {[%clk 0:03:00.5]}
7. e4 {[%clk 0:03:03.4]} 7... O-O {[%clk 0:03:00.7]} 8. Nf3 {[%clk 0:03:04]}
8... Qa5 {[%clk 0:03:00.8]} 9. Bd2 {[%clk 0:03:03.4]} 9... Bxa6 {[%clk
0:03:00.9]} 10. Be2 {[%clk 0:03:04.1]} 10... d6 {[%clk 0:02:59]} 11. O-O {[%clk
0:03:02.7]} 11... Bxe2 {[%clk 0:02:58.2]} 12. Qxe2 {[%clk 0:03:02.6]} 12... Qa6
{[%clk 0:02:59.1]} 13. Qd1 {[%clk 0:02:52.4]} 13... Nbd7 {[%clk 0:02:55.6]} 14.
a4 {[%clk 0:02:47.5]} 14... Rfb8 {[%clk 0:02:53.2]} 15. Qc2 {[%clk 0:02:45.2]}
15... Qc4 {[%clk 0:02:52.3]} 16. Ra3 {[%clk 0:02:41.9]} 16... Rb4 {[%clk
0:02:43.7]} 17. Re1 {[%clk 0:02:36.4]} 17... Ng4 {[%clk 0:02:41.6]} 18. h3
{[%clk 0:02:35]} 18... Nge5 {[%clk 0:02:41]} 19. Nxe5 {[%clk 0:02:34.8]} 19...
Nxe5 {[%clk 0:02:41.2]} 20. b3 {[%clk 0:02:07.6]} 20... Qa6 {[%clk 0:02:16.5]}
21. Rd1 {[%clk 0:01:40.1]} 21... Rab8 {[%clk 0:02:15.1]} 22. Bc1 {[%clk
0:01:35.5]} 22... c4 {[%clk 0:02:13.5]} 23. bxc4 {[%clk 0:01:19.3]} 23... Qxc4
{[%clk 0:02:08.9]} 24. Qd2 {[%clk 0:01:12.6]} 24... Rb3 {[%clk 0:02:06.4]} 25.
Rxb3 {[%clk 0:00:53]} 25... Rxb3 {[%clk 0:02:07.3]} 26. Nb5 {[%clk 0:00:50.2]}
26... Qxa4 {[%clk 0:01:58]} 27. Nc3 {[%clk 0:00:38.6]} 27... Qb4 {[%clk
0:01:57.8]} 28. Ne2 {[%clk 0:00:31.4]} 28... Qxe4 {[%clk 0:01:56.4]} 29. Ng3
{[%clk 0:00:30.2]} 29... Qc4 {[%clk 0:01:55.9]} 30. Kh1 {[%clk 0:00:23.6]} 30...
h5 {[%clk 0:01:53.8]} 31. Bb2 {[%clk 0:00:22.3]} 31... h4 {[%clk 0:01:49.7]} 32.
Bxe5 {[%clk 0:00:21.8]} 32... Bxe5 {[%clk 0:01:49.2]} 33. Nf1 {[%clk 0:00:22]}
33... Rb2 {[%clk 0:01:47.8]} 34. Qd3 {[%clk 0:00:19.6]} 34... Qf4 {[%clk
0:01:47]} 35. Rd2 {[%clk 0:00:13.3]} 35... Rb8 {[%clk 0:01:42.8]} 36. Qe3 {[%clk
0:00:12.8]} 36... Rb1 {[%clk 0:01:39.6]} 37. g3 {[%clk 0:00:05.2]} 37... Rxf1+
{[%clk 0:01:38.2]} 38. Kg2 {[%clk 0:00:05.1]} 38... Qxe3 {[%clk 0:01:38.8]} 39.
fxe3 {[%clk 0:00:05.7]} 39... Re1 {[%clk 0:01:39.4]} 0-1

[Event "Late-Titled-Tuesday-Blitz-April-23-2024"]
[Site "Chess.com"]
[Date "2024.04.23"]
[Round "9"]
[White "subham777"]
[Black "Harry_Rakkel"]
[Result "0-1"]
[WhiteElo "2543"]
[BlackElo "2687"]
[TimeControl "180+1"]
[EndTime "15:44:53 PDT"]
[Termination "Harry_Rakkel won by checkmate"]

1. e4 {[%clk 0:03:00.9]} 1... c5 {[%clk 0:02:53.7]} 2. Nf3 {[%clk 0:02:57.6]}
2... d6 {[%clk 0:02:53.6]} 3. d4 {[%clk 0:02:55.9]} 3... cxd4 {[%clk 0:02:53.6]}
4. Qxd4 {[%clk 0:02:56.8]} 4... a6 {[%clk 0:02:52.1]} 5. Nc3 {[%clk 0:02:55.8]}
5... Nc6 {[%clk 0:02:51.2]} 6. Qd2 {[%clk 0:02:53.9]} 6... g6 {[%clk 0:02:47]}
7. b3 {[%clk 0:02:51.3]} 7... Bh6 {[%clk 0:02:43.8]} 8. Qd3 {[%clk 0:02:43.5]}
8... Bxc1 {[%clk 0:02:42.1]} 9. Rxc1 {[%clk 0:02:42.6]} 9... Nf6 {[%clk
0:02:31.9]} 10. Be2 {[%clk 0:02:41.2]} 10... O-O {[%clk 0:02:29.9]} 11. O-O
{[%clk 0:02:40.1]} 11... Bg4 {[%clk 0:02:30.4]} 12. Nd5 {[%clk 0:02:34.5]} 12...
Nxd5 {[%clk 0:02:24.7]} 13. exd5 {[%clk 0:02:31.8]} 13... Bxf3 {[%clk
0:02:20.5]} 14. Bxf3 {[%clk 0:02:30.8]} 14... Ne5 {[%clk 0:02:18.5]} 15. Qe2
{[%clk 0:02:30.2]} 15... b5 {[%clk 0:02:16.3]} 16. c4 {[%clk 0:02:23.5]} 16...
bxc4 {[%clk 0:02:14.9]} 17. bxc4 {[%clk 0:02:22.5]} 17... Qa5 {[%clk 0:01:58.5]}
18. Rfe1 {[%clk 0:02:18.6]} 18... Rac8 {[%clk 0:01:55.6]} 19. g3 {[%clk
0:02:12.8]} 19... Rc7 {[%clk 0:01:28.3]} 20. Bg2 {[%clk 0:02:08.2]} 20... Rfc8
{[%clk 0:01:27.7]} 21. f4 {[%clk 0:01:48.1]} 21... Nxc4 {[%clk 0:01:15.4]} 22.
Bf1 {[%clk 0:01:36.3]} 22... Qb6+ {[%clk 0:01:01.7]} 23. Kh1 {[%clk 0:01:32.1]}
23... Qb7 {[%clk 0:00:51.6]} 24. Qe4 {[%clk 0:01:15.3]} 24... Nd2 {[%clk
0:00:44.5]} 25. Rxc7 {[%clk 0:01:11.3]} 25... Rxc7 {[%clk 0:00:44.3]} 26. Qd3
{[%clk 0:01:06]} 26... Nxf1 {[%clk 0:00:42.8]} 27. Rxf1 {[%clk 0:01:05.2]} 27...
Rc5 {[%clk 0:00:42.6]} 28. Rd1 {[%clk 0:01:01]} 28... e6 {[%clk 0:00:41.8]} 29.
Kg1 {[%clk 0:00:59.8]} 29... Rxd5 {[%clk 0:00:40.1]} 30. Qf1 {[%clk 0:00:58.8]}
30... Qb6+ {[%clk 0:00:34.6]} 31. Kg2 {[%clk 0:00:57.3]} 31... Qc6 {[%clk
0:00:33.4]} 32. Kh3 {[%clk 0:00:52]} 32... Rh5+ {[%clk 0:00:32.1]} 33. Kg4
{[%clk 0:00:51.3]} 33... f5# {[%clk 0:00:32.1]} 0-1

[Event "Late-Titled-Tuesday-Blitz-April-23-2024"]
[Site "Chess.com"]
[Date "2024.04.23"]
[Round "9"]
[White "HipsterChess22"]
[Black "Szachulec75"]
[Result "0-1"]
[WhiteElo "2217"]
[BlackElo "2096"]
[TimeControl "180+1"]
[EndTime "15:44:54 PDT"]
[Termination "Szachulec75 won on time"]

1. d4 {[%clk 0:02:59.4]} 1... Nf6 {[%clk 0:02:59.1]} 2. Nc3 {[%clk 0:02:59.1]}
2... g6 {[%clk 0:03:00]} 3. e4 {[%clk 0:02:52.6]} 3... d6 {[%clk 0:03:00.1]} 4.
Be3 {[%clk 0:02:48.2]} 4... Bg7 {[%clk 0:03:00.1]} 5. f3 {[%clk 0:02:45.5]} 5...
c6 {[%clk 0:03:00.3]} 6. Qd2 {[%clk 0:02:45.3]} 6... O-O {[%clk 0:03:00]} 7. h4
{[%clk 0:02:42.6]} 7... b5 {[%clk 0:02:41.3]} 8. O-O-O {[%clk 0:02:32.2]} 8...
b4 {[%clk 0:02:34.1]} 9. Nb1 {[%clk 0:02:30.5]} 9... Ba6 {[%clk 0:02:34.3]} 10.
Bxa6 {[%clk 0:02:29.2]} 10... Nxa6 {[%clk 0:02:34.2]} 11. Ne2 {[%clk 0:02:24]}
11... c5 {[%clk 0:02:34.2]} 12. Bh6 {[%clk 0:02:09.1]} 12... c4 {[%clk
0:02:30.2]} 13. c3 {[%clk 0:02:02.9]} 13... e5 {[%clk 0:02:21.3]} 14. h5 {[%clk
0:01:56]} 14... Nxh5 {[%clk 0:02:17.7]} 15. Bxg7 {[%clk 0:01:41.4]} 15... Kxg7
{[%clk 0:02:13.8]} 16. g4 {[%clk 0:01:40.7]} 16... Nf4 {[%clk 0:02:13]} 17. Nxf4
{[%clk 0:01:38.8]} 17... exf4 {[%clk 0:02:13.3]} 18. Qxf4 {[%clk 0:01:39.1]}
18... g5 {[%clk 0:01:59.6]} 19. Qf5 {[%clk 0:01:26.3]} 19... h6 {[%clk
0:01:55.1]} 20. e5 {[%clk 0:00:56.4]} 20... bxc3 {[%clk 0:01:45]} 21. Nxc3
{[%clk 0:00:48.3]} 21... Nb4 {[%clk 0:01:45.4]} 22. Rxh6 {[%clk 0:00:39.3]}
22... Rh8 {[%clk 0:01:42.1]} 23. Rxh8 {[%clk 0:00:34.6]} 23... Qxh8 {[%clk
0:01:40.9]} 24. Qxg5+ {[%clk 0:00:24.1]} 24... Kf8 {[%clk 0:01:41.1]} 25. exd6
{[%clk 0:00:21]} 25... Nd3+ {[%clk 0:01:38.3]} 26. Kb1 {[%clk 0:00:14.8]} 26...
Qh2 {[%clk 0:01:33.7]} 27. Qe7+ {[%clk 0:00:10.5]} 27... Kg7 {[%clk 0:01:34.2]}
28. Qe2 {[%clk 0:00:09.4]} 28... Qxd6 {[%clk 0:01:31.1]} 29. d5 {[%clk
0:00:02.5]} 29... Rb8 {[%clk 0:01:29.4]} 30. Rd2 {[%clk 0:00:02]} 30... Qf6
{[%clk 0:01:22.8]} 31. Qe4 {[%clk 0:00:02.1]} 31... Qxc3 {[%clk 0:01:22.1]} 0-1

[Event "Late-Titled-Tuesday-Blitz-April-23-2024"]
[Site "Chess.com"]
[Date "2024.04.23"]
[Round "9"]
[White "KebabJangles"]
[Black "scandalgod"]
[Result "1-0"]
[WhiteElo "2277"]
[BlackElo "2511"]
[TimeControl "180+1"]
[EndTime "15:44:56 PDT"]
[Termination "KebabJangles won by resignation"]

1. d4 {[%clk 0:03:00.9]} 1... d5 {[%clk 0:02:57.2]} 2. Bf4 {[%clk 0:03:00.6]}
2... Nf6 {[%clk 0:02:56.4]} 3. Nf3 {[%clk 0:02:57.7]} 3... e6 {[%clk 0:02:56.6]}
4. e3 {[%clk 0:02:57.1]} 4... Bd6 {[%clk 0:02:52.5]} 5. Bg3 {[%clk 0:02:54.1]}
5... O-O {[%clk 0:02:52.6]} 6. Nbd2 {[%clk 0:02:53.8]} 6... c5 {[%clk
0:02:52.1]} 7. c3 {[%clk 0:02:53.8]} 7... Qc7 {[%clk 0:02:52.2]} 8. Ne5 {[%clk
0:02:52.2]} 8... Nbd7 {[%clk 0:02:52.4]} 9. f4 {[%clk 0:02:52.4]} 9... b6 {[%clk
0:02:52.5]} 10. Bd3 {[%clk 0:02:50.9]} 10... Bb7 {[%clk 0:02:52.8]} 11. Rc1
{[%clk 0:02:50.9]} 11... Ne4 {[%clk 0:02:48.4]} 12. O-O {[%clk 0:02:42.4]} 12...
Ndf6 {[%clk 0:02:43.7]} 13. Bh4 {[%clk 0:02:40.8]} 13... a5 {[%clk 0:02:43]} 14.
g4 {[%clk 0:02:37.6]} 14... Ba6 {[%clk 0:02:32.8]} 15. Bxa6 {[%clk 0:02:36.9]}
15... Rxa6 {[%clk 0:02:31.7]} 16. Bxf6 {[%clk 0:02:36.2]} 16... Nxf6 {[%clk
0:02:27.8]} 17. g5 {[%clk 0:02:36.3]} 17... Ne8 {[%clk 0:02:22.2]} 18. Qe2
{[%clk 0:02:36.2]} 18... Ra7 {[%clk 0:02:21.6]} 19. h4 {[%clk 0:02:34.4]} 19...
f6 {[%clk 0:02:20.6]} 20. Ng4 {[%clk 0:02:33.4]} 20... Kh8 {[%clk 0:02:20]} 21.
Kg2 {[%clk 0:02:33.1]} 21... Qc6 {[%clk 0:02:14.9]} 22. Nf3 {[%clk 0:02:31.7]}
22... Raf7 {[%clk 0:02:06.3]} 23. h5 {[%clk 0:02:29.3]} 23... Qd7 {[%clk
0:02:05.9]} 24. g6 {[%clk 0:02:27.5]} 24... Re7 {[%clk 0:02:02.5]} 25. Nfe5
{[%clk 0:02:22.7]} 25... Qd8 {[%clk 0:01:25.1]} 26. gxh7 {[%clk 0:02:14.6]}
26... Kxh7 {[%clk 0:01:19.1]} 27. Ng6 {[%clk 0:02:12.6]} 27... Rff7 {[%clk
0:01:13.6]} 28. Nxe7 {[%clk 0:02:11.7]} 28... Qxe7 {[%clk 0:01:13]} 29. Qf3
{[%clk 0:02:09.4]} 29... Bc7 {[%clk 0:01:00.1]} 30. f5 {[%clk 0:02:06.7]} 30...
e5 {[%clk 0:00:58.2]} 31. Qxd5 {[%clk 0:02:01.6]} 31... Nd6 {[%clk 0:00:44.4]}
32. dxe5 {[%clk 0:01:56.6]} 32... fxe5 {[%clk 0:00:44.4]} 33. Nxe5 {[%clk
0:01:52]} 33... Qg5+ {[%clk 0:00:37.1]} 34. Kh1 {[%clk 0:01:46]} 34... Qxh5+
{[%clk 0:00:36.2]} 35. Kg1 {[%clk 0:01:44]} 35... Rxf5 {[%clk 0:00:33.1]} 36.
Rxf5 {[%clk 0:01:41.9]} 36... Nxf5 {[%clk 0:00:32.9]} 37. Nf3 {[%clk 0:01:36.6]}
37... Qg4+ {[%clk 0:00:29.7]} 38. Kf2 {[%clk 0:01:32.9]} 38... Qg3+ {[%clk
0:00:20.9]} 39. Ke2 {[%clk 0:01:27.4]} 39... Qg2+ {[%clk 0:00:19.1]} 40. Kd3
{[%clk 0:01:26.6]} 40... Ng3 {[%clk 0:00:14.7]} 41. Ng5+ {[%clk 0:01:25.5]} 1-0

[Event "Late-Titled-Tuesday-Blitz-April-23-2024"]
[Site "Chess.com"]
[Date "2024.04.23"]
[Round "9"]
[White "mjelcic"]
[Black "Slovak_fighter2000"]
[Result "0-1"]
[WhiteElo "2378"]
[BlackElo "2548"]
[TimeControl "180+1"]
[EndTime "15:45:06 PDT"]
[Termination "Slovak_fighter2000 won by checkmate"]

1. c4 {[%clk 0:03:00.9]} 1... e5 {[%clk 0:02:59.6]} 2. Nc3 {[%clk 0:02:59.9]}
2... Nc6 {[%clk 0:03:00]} 3. g3 {[%clk 0:02:58.7]} 3... f5 {[%clk 0:02:59.7]} 4.
Bg2 {[%clk 0:02:51.3]} 4... Nf6 {[%clk 0:02:59.9]} 5. a3 {[%clk 0:02:49]} 5...
a5 {[%clk 0:02:52.3]} 6. e3 {[%clk 0:02:46.1]} 6... d6 {[%clk 0:02:41]} 7. Nge2
{[%clk 0:02:45.4]} 7... g6 {[%clk 0:02:36.2]} 8. d4 {[%clk 0:02:43.3]} 8... Bg7
{[%clk 0:02:36.7]} 9. O-O {[%clk 0:02:41.4]} 9... O-O {[%clk 0:02:36.2]} 10. b3
{[%clk 0:02:38]} 10... Bd7 {[%clk 0:02:20.3]} 11. Bb2 {[%clk 0:02:37.7]} 11...
h6 {[%clk 0:02:12.2]} 12. h4 {[%clk 0:02:35.6]} 12... Kh7 {[%clk 0:02:11.5]} 13.
Nd5 {[%clk 0:02:30.3]} 13... Ng4 {[%clk 0:01:58.2]} 14. Bh3 {[%clk 0:02:06.4]}
14... Ne7 {[%clk 0:01:50.5]} 15. Nec3 {[%clk 0:02:03.8]} 15... c6 {[%clk
0:01:45.9]} 16. Nxe7 {[%clk 0:02:01.7]} 16... Qxe7 {[%clk 0:01:46.8]} 17. Ne2
{[%clk 0:01:58.3]} 17... f4 {[%clk 0:01:36.8]} 18. exf4 {[%clk 0:01:57.6]} 18...
exf4 {[%clk 0:01:33.4]} 19. Nxf4 {[%clk 0:01:57.5]} 19... Rxf4 {[%clk
0:01:31.9]} 20. gxf4 {[%clk 0:01:53.6]} 20... Qxh4 {[%clk 0:01:31.7]} 21. Bxg4
{[%clk 0:01:46.8]} 21... Bxg4 {[%clk 0:01:32.2]} 22. Qd3 {[%clk 0:01:46.6]}
22... Rf8 {[%clk 0:00:56.2]} 23. Qg3 {[%clk 0:01:45.1]} 23... Qh5 {[%clk
0:00:53.2]} 24. Rfe1 {[%clk 0:01:40.3]} 24... Bf3 {[%clk 0:00:50.4]} 25. Qh2
{[%clk 0:01:35]} 25... Qg4+ {[%clk 0:00:43.7]} 26. Qg3 {[%clk 0:01:35.1]} 26...
Rxf4 {[%clk 0:00:35.6]} 27. Re3 {[%clk 0:01:26.3]} 27... Qf5 {[%clk 0:00:28.2]}
28. Kf1 {[%clk 0:01:13.3]} 28... g5 {[%clk 0:00:18.5]} 29. Rae1 {[%clk 0:01:11]}
29... g4 {[%clk 0:00:18.7]} 30. Re7 {[%clk 0:01:09.3]} 30... Qh5 {[%clk
0:00:15.7]} 31. d5 {[%clk 0:00:53.6]} 31... Qh1+ {[%clk 0:00:14.6]} 32. Qg1
{[%clk 0:00:53.9]} 32... Qh3+ {[%clk 0:00:14.9]} 33. Qg2 {[%clk 0:00:54.3]}
33... Qxg2# {[%clk 0:00:15.3]} 0-1

[Event "Late-Titled-Tuesday-Blitz-April-23-2024"]
[Site "Chess.com"]
[Date "2024.04.23"]
[Round "9"]
[White "FlemingA"]
[Black "albi1999"]
[Result "0-1"]
[WhiteElo "2457"]
[BlackElo "2659"]
[TimeControl "180+1"]
[EndTime "15:45:07 PDT"]
[Termination "albi1999 won by resignation"]

1. e4 {[%clk 0:03:00.9]} 1... c5 {[%clk 0:02:51.6]} 2. b4 {[%clk 0:02:58.3]}
2... cxb4 {[%clk 0:02:45.5]} 3. a3 {[%clk 0:02:58.4]} 3... b3 {[%clk 0:02:39.8]}
4. cxb3 {[%clk 0:02:56.5]} 4... d5 {[%clk 0:02:40.3]} 5. exd5 {[%clk 0:02:54.8]}
5... Nf6 {[%clk 0:02:40.2]} 6. Nc3 {[%clk 0:02:54.6]} 6... Nxd5 {[%clk
0:02:37.6]} 7. Bb2 {[%clk 0:02:38.1]} 7... Nf6 {[%clk 0:02:29.5]} 8. Nf3 {[%clk
0:02:37.4]} 8... e6 {[%clk 0:02:24.2]} 9. Ne5 {[%clk 0:02:34.4]} 9... Be7 {[%clk
0:02:23.8]} 10. Bb5+ {[%clk 0:02:34.1]} 10... Nbd7 {[%clk 0:02:23.7]} 11. O-O
{[%clk 0:02:32.2]} 11... O-O {[%clk 0:02:23.7]} 12. d4 {[%clk 0:02:31.9]} 12...
Nb6 {[%clk 0:02:22.9]} 13. h3 {[%clk 0:02:23.8]} 13... Bd7 {[%clk 0:02:20.2]}
14. Bd3 {[%clk 0:02:20.3]} 14... Rc8 {[%clk 0:02:14.4]} 15. Qf3 {[%clk
0:02:17.3]} 15... Bc6 {[%clk 0:02:12.2]} 16. Nxc6 {[%clk 0:02:12.9]} 16... Rxc6
{[%clk 0:02:10.1]} 17. Ne4 {[%clk 0:02:12.3]} 17... Nbd5 {[%clk 0:02:10.3]} 18.
Rfe1 {[%clk 0:02:06.2]} 18... Qb6 {[%clk 0:02:06.8]} 19. b4 {[%clk 0:02:03.9]}
19... Rfc8 {[%clk 0:02:05.8]} 20. Rab1 {[%clk 0:01:55.3]} 20... Qd8 {[%clk
0:02:04.8]} 21. h4 {[%clk 0:01:38.3]} 21... Nxe4 {[%clk 0:01:39.9]} 22. Bxe4
{[%clk 0:01:32.9]} 22... Bxh4 {[%clk 0:01:29.5]} 23. g3 {[%clk 0:01:31.7]} 23...
Bf6 {[%clk 0:01:28.3]} 24. Kg2 {[%clk 0:01:27.4]} 24... g6 {[%clk 0:01:23.9]}
25. Rh1 {[%clk 0:01:20.8]} 25... Bg7 {[%clk 0:01:21.1]} 26. Rh4 {[%clk 0:01:09]}
26... R6c7 {[%clk 0:01:12.2]} 27. Rbh1 {[%clk 0:00:58.7]} 27... h5 {[%clk
0:01:11.2]} 28. g4 {[%clk 0:00:43]} 28... Qg5 {[%clk 0:01:04.3]} 29. Qg3 {[%clk
0:00:24.1]} 29... Nf4+ {[%clk 0:00:58.2]} 30. Kg1 {[%clk 0:00:11.8]} 30... Ne2+
{[%clk 0:00:57]} 31. Kg2 {[%clk 0:00:10.9]} 31... Nxg3 {[%clk 0:00:56.8]} 0-1

[Event "Late-Titled-Tuesday-Blitz-April-23-2024"]
[Site "Chess.com"]
[Date "2024.04.23"]
[Round "9"]
[White "Kratos031"]
[Black "Fins0905"]
[Result "0-1"]
[WhiteElo "2468"]
[BlackElo "2749"]
[TimeControl "180+1"]
[EndTime "15:45:08 PDT"]
[Termination "Fins0905 won by resignation"]

1. d4 {[%clk 0:02:59.4]} 1... d6 {[%clk 0:02:57.4]} 2. Nf3 {[%clk 0:02:58.1]}
2... Nf6 {[%clk 0:02:56.3]} 3. c4 {[%clk 0:02:57.7]} 3... Nbd7 {[%clk
0:02:53.9]} 4. Nc3 {[%clk 0:02:57.9]} 4... e5 {[%clk 0:02:54.3]} 5. e4 {[%clk
0:02:56.5]} 5... Be7 {[%clk 0:02:54.6]} 6. Be2 {[%clk 0:02:56.4]} 6... O-O
{[%clk 0:02:54.8]} 7. O-O {[%clk 0:02:56.8]} 7... c6 {[%clk 0:02:54.7]} 8. b3
{[%clk 0:02:57]} 8... Re8 {[%clk 0:02:54.6]} 9. Bb2 {[%clk 0:02:57.2]} 9... Bf8
{[%clk 0:02:54.9]} 10. dxe5 {[%clk 0:02:52.2]} 10... dxe5 {[%clk 0:02:54.4]} 11.
Qc2 {[%clk 0:02:52.6]} 11... a5 {[%clk 0:02:50.6]} 12. Rad1 {[%clk 0:02:50.2]}
12... Qc7 {[%clk 0:02:50.3]} 13. Rd2 {[%clk 0:02:36.2]} 13... Nc5 {[%clk
0:02:47.8]} 14. Rfd1 {[%clk 0:02:34.5]} 14... Bg4 {[%clk 0:02:44.5]} 15. h3
{[%clk 0:02:18.8]} 15... Bxf3 {[%clk 0:02:34.2]} 16. Bxf3 {[%clk 0:02:19.7]}
16... Ne6 {[%clk 0:02:33.9]} 17. Ne2 {[%clk 0:02:19]} 17... a4 {[%clk
0:02:17.3]} 18. Bg4 {[%clk 0:01:54.5]} 18... Nc5 {[%clk 0:02:03.6]} 19. Ng3
{[%clk 0:01:38]} 19... axb3 {[%clk 0:02:01.1]} 20. axb3 {[%clk 0:01:36.4]} 20...
Qb6 {[%clk 0:02:01.4]} 21. Nf5 {[%clk 0:01:09.7]} 21... Qxb3 {[%clk 0:01:49.2]}
22. Qxb3 {[%clk 0:01:04.2]} 22... Nxb3 {[%clk 0:01:50.1]} 23. Re2 {[%clk
0:01:01.7]} 23... Ra2 {[%clk 0:01:37.5]} 24. Bf3 {[%clk 0:00:53.3]} 24... Nc5
{[%clk 0:01:31.7]} 25. Ng3 {[%clk 0:00:33.6]} 25... g6 {[%clk 0:01:16]} 26. Bxe5
{[%clk 0:00:26.4]} 26... Rxe2 {[%clk 0:01:13.9]} 27. Bxf6 {[%clk 0:00:26.8]}
27... Rc2 {[%clk 0:01:10.4]} 28. e5 {[%clk 0:00:23.3]} 28... Rxc4 {[%clk
0:01:08.5]} 29. h4 {[%clk 0:00:23]} 29... Bg7 {[%clk 0:01:06.6]} 30. Ra1 {[%clk
0:00:19]} 30... Bxf6 {[%clk 0:01:04.7]} 31. exf6 {[%clk 0:00:18.9]} 31... Rf4
{[%clk 0:01:05.4]} 32. Rc1 {[%clk 0:00:17.4]} 32... Nd7 {[%clk 0:01:00.9]} 33.
Rb1 {[%clk 0:00:16.5]} 33... Rb8 {[%clk 0:00:59.3]} 34. Bg4 {[%clk 0:00:14.4]}
34... Rxg4 {[%clk 0:00:58.8]} 0-1